Cogmind - Beta 16 @@@ ROGUE MODE // 2025.10.23 @ 19:10:17 Player: welikiq Result: Destroyed by G-47 Trooper with Particle Gun Performance ------------- Evolutions (2) 1000 Regions Visited (3) 600 Robots Destroyed (62) 310 Value Destroyed (1304) 1304 Prototype IDs (3) 60 Alien Tech Used (0) 0 Bonus (0) 0 TOTAL SCORE: 3274 Bonus ------- None Cogmind --------- Core Integrity 0/550 Matter 300/300 Energy 100/100 System Corruption 1% Temperature Cool (27) Movement Core (50) Location -8/Materials Parts ------- > --- POWER (1) -------- (None) > --- PROPULSION (3) --- (None) > --- UTILITY (4) ------ Advanced Targeting Computer > --- WEAPON (3) ------- (None) > --- INVENTORY (5) ---- (None) Peak State ------------ > --- POWER ------------ Heavy Ion Engine > --- PROPULSION ------- Light Treads Light Treads > --- UTILITY ---------- Visual Processing Unit Seismic Detector Advanced Targeting Computer Advanced Targeting Computer > --- WEAPON ----------- Advanced Beam Cannon Improved Assault Rifle > --- INVENTORY -------- Light Treads Light Treads Light Treads [Rating: 20] Favorites ----------- Power Ion Engine Engine Ion Engine Power Core Light Nuclear Core Propulsion Light Treads Treads Light Treads Leg Aluminum Leg Utility Seismic Detector Device Seismic Detector Storage Small Storage Unit Processor Machine Analyzer Weapon Improved Assault Rifle Energy Gun Small Laser Energy Cannon Advanced Beam Cannon Ballistic Gun Improved Assault Rifle Special Weapon Plasma Cutter Build | -11 -10 -9 -8 ------- Run | Yrd Mat Mat Mat Slots Evolved 4 | . . 2 2 Power . | . . . . Propulsion 1 | . . . 1 Utility 2 | . . 2 . Weapon 1 | . . . 1 Parts Attached 51 | 11 4 29 7 Power 6 | 2 . 3 1 Engine 5 | 2 . 3 . Core 1 | . . . 1 Reactor . | . . . . Propulsion 12 | 2 1 6 3 Treads 10 | 2 1 6 1 Leg 2 | . . . 2 Wheel . | . . . . Hover . | . . . . Flight . | . . . . Utility 17 | 4 1 11 1 Device 9 | 3 . 5 1 Storage 1 | 1 . . . Processor 7 | . 1 6 . Hackware . | . . . . Protection . | . . . . Artifact . | . . . . Weapon 16 | 3 2 9 2 Energy Gun 7 | 3 1 2 1 Energy Cannon 1 | . . 1 . Ballistic Gun 7 | . 1 6 . Ballistic Cannon . | . . . . Launcher . | . . . . Special Weapon 1 | . . . 1 Impact Weapon . | . . . . Slashing Weapon . | . . . . Piercing Weapon . | . . . . Special Melee Weapon . | . . . . Unidentified Prototypes 3 | . . 3 . Parts Lost 21 | . 1 6 14 Power 1 | . . . 1 Propulsion 10 | . . 4 6 Utility 5 | . . 2 3 Weapon 5 | . 1 . 4 Highest Loss Streak 14 | . 1 3 14 To Critical Strikes . | . . . . Average Backups 2 | 1 3 3 1 Power . | . . . . Propulsion 1 | . . 1 . Utility 1 | . 2 . . Weapon . | . . . . Tool/Special . | . . . . Unused Backups 1 | . . 1 . Power . | . . . . Propulsion . | . . . . Utility . | . . . . Weapon 1 | . . 1 . Tool/Special . | . . . . Average Slot Usage (%) 93 | . 99 94 66 Engine 10 | . 14 10 3 Treads 22 | . 28 20 19 Device 16 | . 18 16 7 Processor 18 | . 9 24 16 Energy Gun 10 | . 24 3 2 Energy Cannon 2 | . . 2 6 Ballistic Gun 10 | . 3 15 6 Peak Build Rating 20 | 9 9 20 20 Average Rating 12 | 7 8 15 15 On Entrance 8 | . 9 9 17 Avg Prop Armor Cover (%) . | . . . . Naked Turns . | . . . . Heaviest Build 20 | 15 11 20 16 Greatest Support 60 | 40 40 40 60 Greatest Overweight (x) 3 | . . . 3 Average Overweight (x) . | . . . . Largest Inventory Capacity 8 | 8 5 5 5 Average Capacity 5 | 7 5 5 5 Most Carried 5 | 4 5 5 2 Average Carried 2 | 1 3 3 1 Final Capacity 5 | 5 5 5 5 Final Carried 5 | 3 5 2 . Class Distribution -------------------- 44% | Mutant 38% | Scavenger-Mutant 15% | Scavenger-Skirmisher Dominant Class ---------------- Mutant | -10/Materials Scavenger-Mutant | -9/Materials Scavenger-Mutant | -8/Materials Resources | -11 -10 -9 -8 ----------- Run | Yrd Mat Mat Mat Matter Collected 1089 | 290 85 618 96 Remotely . | . . . . Salvage Created 2162 | 274 450 1291 147 Parts 148 | 27 36 79 6 Haulers Intercepted 4 | . 1 3 . Recyclers Shooed 1 | . . 1 . Parts Field Recycled . | . . . . Retrieved Matter . | . . . . Parts Self-Destructed . | . . . . Prevented . | . . . . Parts Restored . | . . . . Kills | -11 -10 -9 -8 ------- Run | Yrd Mat Mat Mat Combat Hostiles Destroyed 31 | . 7 21 3 Guns 22 | . 4 18 . Cannons 6 | . . 3 3 AOE 2 | . 2 . . Classes Destroyed 13 | 3 6 3 1 Worker 8 | 2 2 4 . Builder 2 | . 1 1 . Tunneler 8 | 7 1 . . Hauler 4 | . 1 3 . Recycler 2 | 1 . 1 . Mechanic 1 | . 1 . . Watcher 6 | . 3 3 . Swarmer 5 | . 2 3 . Grunt 16 | . 5 10 1 Brawler 1 | . . 1 . Duelist 1 | . . 1 . Sentry 7 | . . 6 1 Specialist 1 | . . . 1 Best Kill Streak 8 | 3 3 8 2 Combat Bots Only 4 | . 2 4 2 Max Kills in Single Turn 2 | 1 2 1 1 Gunslinging . | . . . . Exploded 1 | . 1 . . Melee . | . . . . Uniques/NPCs Destroyed . | . . . . Combat | -11 -10 -9 -8 -------- Run | Yrd Mat Mat Mat Hostile Shots Fired 347 | . 72 115 160 Missed 117 | . 29 33 55 Hits 230 | . 43 82 105 Melee 7 | . . 7 . Projectile 223 | . 43 75 105 Critical Strikes 6 | . . 3 3 Damage Taken 3096 | . 524 1151 1421 Core 872 | . 90 228 554 Absorbed by Shields . | . . . . Core Remaining (%) 69 | 100 64 43 . Volleys Fired 172 | 19 52 88 13 Largest 3 | 2 2 2 3 Hottest 147 | 80 80 112 147 Shots Fired 336 | 31 103 170 32 Gun 314 | 31 103 160 20 Cannon 22 | . . 10 12 Launcher . | . . . . Special . | . . . . Kinetic 124 | . 5 111 8 Thermal 145 | . 62 59 24 Explosive . | . . . . Electromagnetic 67 | 31 36 . . Robot Hit Streak 24 | 9 9 24 22 Robot Miss Streak 4 | 2 4 3 3 Penetration Max . | . . . . Secondary Targets 1 | . . 1 . Max Gunslinging Chain 1 | . . 1 . Shots Hit Robots 229 | 20 57 129 23 Core Hits 87 | 10 24 48 5 Critical Kills . | . . . . Critical Parts Destroyed 1 | . . 1 . Critical Strikes 8 | 1 . 7 . Burn 6 | . . 6 . Destroy 1 | . . 1 . Corrupt 1 | 1 . . . Melee Attacks . | . . . . Impact . | . . . . Slashing . | . . . . Piercing . | . . . . Sneak Attacks . | . . . . Combat Hostiles . | . . . . Follow-up Attacks . | . . . . Damage Inflicted 3283 | 277 735 1873 398 Guns 2807 | 276 646 1676 209 Cannons 371 | . . 186 185 Explosions 89 | . 89 . . Melee . | . . . . Ramming 16 | 1 . 11 4 Kinetic 1290 | . 41 1158 91 Thermal 1397 | . 390 704 303 Explosive . | . . . . Electromagnetic 580 | 276 304 . . Impact . | . . . . Slashing . | . . . . Piercing . | . . . . Highest Corruption 1 | . . 1 1 Average Corruption 1 | . . 1 1 Corruption Purged . | . . . . Corruption Blocked . | . . . . Effects 7 | . . 6 1 Message Errors 2 | . . 2 . Matter Fused 3 | . . 2 1 Parts Rejected 1 | . . 1 . Data Loss (minor) 1 | . . 1 . Overload Shots . | . . . . Overflow Damage 7 | . 7 . . Projectiles . | . . . . Explosions 7 | . 7 . . Melee . | . . . . Knockbacks . | . . . . Impact . | . . . . Kinetic . | . . . . Secondary . | . . . . Self-Inflicted Damage 72 | . 72 . . Shots 2 | . 2 . . Rammed 11 | . 3 3 5 Targets Rammed 12 | 1 3 3 5 Kicked . | . . . . Crushed 1 | 1 . . . Highest Temperature 601 | 54 246 334 601 Average Temperature 104 | 14 62 98 279 Received Heat Transfer 948 | . 138 351 459 Effects 22 | . . 7 15 Shutdowns 2 | . . . 2 Energy Bleed 5 | . . 1 4 Interference 5 | . . 5 . Matter Decay 1 | . . . 1 Short Circuit 1 | . . 1 . Damage (major) 8 | . . . 8 Siege Activations . | . . . . Martial Activations . | . . . . Shielding Activations . | . . . . Robots Disrupted . | . . . . Combat Hostiles . | . . . . Robots Corrupted 1 | . 1 . . Combat Hostiles 1 | . 1 . . Parts Fried 1 | . 1 . . Impact Corruptions . | . . . . Robots Melted . | . . . . Combat Hostiles . | . . . . Parts Melted 7 | . . 4 3 Heat Transferred 3408 | . 750 2029 629 Parts Sabotaged . | . . . . Parts Stolen . | . . . . Parts Stripped . | . . . . Power Chain Reactions 2 | . 2 . . Alert | -11 -10 -9 -8 ------- Run | Yrd Mat Mat Mat Maximum Alert Level . | . . . . Low Security (%) 100 | 100 100 100 100 Level 1 . | . . . . Level 2 . | . . . . Level 3 . | . . . . Level 4 . | . . . . Level 5 . | . . . . High Security . | . . . . Max Security . | . . . . Peak Influence 153 | 10 69 153 64 Initial 62 | . . . 62 Average 41 | 1 17 65 30 Influence Increases 1056 | 50 261 643 102 Destroy 0b10 Robot/C 620 | . 140 420 60 Destroy 0b10 Robot/NC 155 | 50 45 60 . Destroy Leader 180 | . 38 122 20 Successful Hack 28 | . 14 7 7 Destroy Structure 13 | . 9 4 . Lose Combat Pursuer 60 | . 15 30 15 Influence Decreases 1056 | 50 259 496 251 Entered New Map 89 | . . 2 87 Time Decay 817 | 50 249 434 84 Lost Part 150 | . 10 60 80 Squads Dispatched 5 | . 1 1 3 Investigation 3 | . 1 1 1 Extermination . | . . . . Reinforcement 2 | . . . 2 Assault . | . . . . Garrison . | . . . . Intercept . | . . . . Searches Triggered . | . . . . Construction Impeded . | . . . . Haulers Reinforced . | . . . . Active Scanning Responses . | . . . . Cargo Convoy Interrupts . | . . . . Stealth | -11 -10 -9 -8 --------- Run | Yrd Mat Mat Mat Distress Signals 11 | . 4 6 1 Communications Jammed . | . . . . Distress Signals . | . . . . Times Spotted 69 | . 21 32 16 Peak Tracking Total 13 | . 5 6 13 Tactical Retreats 4 | . 1 2 1 Traps | -11 -10 -9 -8 ------- Run | Yrd Mat Mat Mat Traps Triggered 1 | . 1 . . Indirectly . | . . . . Trap Hack Attempts . | . . . . Triggered . | . . . . Disarmed . | . . . . Reprogrammed . | . . . . Reused . | . . . . Traps Extracted . | . . . . Installed . | . . . . Triggered . | . . . . Machines | -11 -10 -9 -8 ---------- Run | Yrd Mat Mat Mat Machines Disabled . | . . . . Max in Single Turn . | . . . . Machines Repaired . | . . . . Machines Dismantled . | . . . . Machines Sabotaged . | . . . . Overloaded Fab Kills . | . . . . Hacking | -11 -10 -9 -8 --------- Run | Yrd Mat Mat Mat Machines Accessed 8 | . 2 5 1 Terminals 5 | . 2 2 1 Fabricators . | . . . . Repair Stations 1 | . . 1 . Recycling Units 1 | . . 1 . Scanalyzers 1 | . . 1 . Garrison Access . | . . . . Total Hacks 23 | . 7 13 3 Successful 13 | . 3 9 1 Failed 10 | . 4 4 2 Catastrophic . | . . . . Database Lockouts . | . . . . Manual . | . . . . Terminals 13 | . 7 3 3 Fabricators . | . . . . Repair Stations 3 | . . 3 . Recycling Units 3 | . . 3 . Scanalyzers 4 | . . 4 . Garrison Access . | . . . . Terminal Hacks 7 | . 3 3 1 Record 3 | . 3 . . Alert Level 1 | . . 1 . Dispatch Records 1 | . . 1 . Maintenance Status 1 | . . 1 . Recall Investigation 1 | . . . 1 Fabricator Hacks . | . . . . Repair Station Hacks 1 | . . 1 . Scan Component 1 | . . 1 . Recycling Unit Hacks 1 | . . 1 . Retrieve Components 1 | . . 1 . Scanalyzer 4 | . . 4 . Insert Component 1 | . . 1 . Analyze 2 | . . 2 . Retrieve Study 1 | . . 1 . Garrison Access Hacks . | . . . . Unauthorized Hacks . | . . . . Terminals . | . . . . Fabricators . | . . . . Repair Stations . | . . . . Recycling Units . | . . . . Scanalyzers . | . . . . Garrison Access . | . . . . Data Cores Recovered . | . . . . Used . | . . . . Hacking Detections 7 | . 2 4 1 Full Trace Events 3 | . . 2 1 Feedback Events 2 | . . 1 1 Corruption 2 | . . 1 1 Feedback Blocked . | . . . . Robot Schematics Acquired . | . . . . Robots Built . | . . . . Authchips . | . . . . Time . | . . . . Total Robot Build Rating . | . . . . Part Schematics Acquired 1 | . . 1 . Parts Built . | . . . . Authchips . | . . . . Time . | . . . . Total Part Build Rating . | . . . . Part Studies Acquired 1 | . . 1 . Parts Repaired . | . . . . Time . | . . . . Parts Recycled . | . . . . Recycled Matter . | . . . . Retrieved Matter . | . . . . Retrieved Components 9 | . . 9 . Parts Scanalyzed 1 | . . 1 . Part Schematics Acquired 1 | . . 1 . Parts Damaged . | . . . . Bothacking | -11 -10 -9 -8 ------------ Run | Yrd Mat Mat Mat Used RIF Installer . | . . . . Robots Hacked . | . . . . Non-combat . | . . . . Combat . | . . . . Robot Hacks Applied . | . . . . Relay Couplers Released . | . . . . Fabnet Peak Effective % . | . . . . Robots Rewired . | . . . . Allies Hacked . | . . . . Hacks Repelled . | . . . . Allies | -11 -10 -9 -8 -------- Run | Yrd Mat Mat Mat Total Allies . | . . . . Largest Group . | . . . . Highest-Rated Group . | . . . . Highest-Rated Ally . | . . . . Total Orders . | . . . . Ally Attacks . | . . . . Total Damage . | . . . . Kills . | . . . . Allies Corrupted . | . . . . Allies Melted . | . . . . Intel | -11 -10 -9 -8 ------- Run | Yrd Mat Mat Mat Active Infowar (turns) 2590 | 219 828 1359 184 Optics 627 | . . 443 184 Terrain 870 | 219 239 412 . Structural 479 | . . 479 . Seismic 2072 | 7 828 1072 165 T.N.C. 546 | . . 546 . Machine Analysis 1668 | . 589 1079 . Robot Analysis Total . | . . . . Derelict Logs Recovered . | . . . . Drone Launches . | . . . . Drone Recoveries . | . . . . Exploration | -11 -10 -9 -8 ------------- Run | Yrd Mat Mat Mat Turns Passed 2791 | 317 828 1419 227 Spaces Moved 1166 | 156 370 540 100 Core 10 | 5 . . 5 Treads 1132 | 151 370 540 71 Legs 24 | . . . 24 Wheels . | . . . . Hover . | . . . . Flight . | . . . . Fastest Speed 50 | 50 160 160 50 Average Speed 158 | 156 160 160 145 Slowest Speed 200 | 160 160 160 200 Overloaded Moves . | . . . . Propulsion Burnouts . | . . . . Robots Hopped . | . . . . Potential Cave-ins . | . . . . Cave-ins Triggered . | . . . . Exploration Rate (%) 26 | 6 44 42 13 Regions Visited 3 Branch Regions . Pre-discovered Areas . | . . . . Known Exits Taken . | . . . . Unknown Exits Taken 3 | 1 1 1 . Scrap Searched . | . . . . Spaces Dug . | . . . . Terrain Destroyed 7 | . 7 . . Melee . | . . . . Projectile . | . . . . AOE 7 | . 7 . . Terrain Rammed . | . . . . Walls Destroyed . | . . . . Machines Disabled . | . . . . Actions | -11 -10 -9 -8 --------- Run | Yrd Mat Mat Mat Total 1766 | 192 501 924 149 Wait 317 | 3 62 230 22 Move 1163 | 155 369 539 100 Hop . | . . . . Pick Up 19 | 2 5 11 1 Fast Attach 24 | 7 2 11 4 Attach 12 | . . 9 3 Detach . | . . . . Swap 19 | 4 3 11 1 Drop 28 | 1 5 22 . Fire 172 | 19 52 88 13 Melee . | . . . . Ram . | . . . . Kick . | . . . . Crush 12 | 1 3 3 5 Escape Stasis . | . . . . Rewire . | . . . . Trap . | . . . . Miscellaneous . | . . . . Route ------- -11/Scrapyard -10/Materials -9/Materials (discovered 2 exits: *Mat / [*Min]) -8/Materials History --------- Turn | Location | Event 9 | -11/Scrapyard | Discovered new exit (range 16) 318 | -11/Scrapyard | Entered Materials 333 | -10/Materials | Build established: Mutant 1120 | -10/Materials | Discovered new exit (range 16) 1146 | -10/Materials | Entered another Materials area 1146 | -9/Materials | Evolved 2 slots: Utility x2 1381 | -9/Materials | Lost 3 parts (2n1u) 1446 | -9/Materials | Build established: Scavenger-Skirmisher 1874 | -9/Materials | Build established: Scavenger-Mutant 2111 | -9/Materials | Discovered new exit (range 12) 2354 | -9/Materials | Discovered new exit (range 8) 2521 | -9/Materials | Core integrity fell below 50% 2565 | -9/Materials | Entered another Materials area 2565 | -8/Materials | Evolved 2 slots: Propulsion x1, Weapon x1 2771 | -8/Materials | Core integrity fell below 50% 2789 | -8/Materials | Core integrity fell below 20% 2792 | -8/Materials | Destroyed by G-47 Trooper with Particle Gun Last Messages --------------- 02740_ Beam Rifle destroyed. [Achievement: There's More Where That Came From] 02743_ Slammed into X-57 Shotgunner. 02747_ Acquired 33 matter. 02748_ Slammed into X-57 Shotgunner. 02749_ Lgt. Treads+ destroyed. 02749_ Visual Processing Unit destroyed. 02749_ Critical hit (Burn: +37). 02750_ Acquired 25 matter. 02751_ Acquired VSS Leg. [Achievement: Sprinter] 02752_ Acquired 10 matter. 02754_ Acquired Aluminum Leg. 02754_ Plasma Cutter destroyed. 02756_ Acquired 5 matter. 02758_ M-13 Machinist destroyed. 02762_ Acquired Imp. Heat Sink. 02764_ VSS Leg destroyed. 02787_ Aluminum Leg destroyed. 02792_ Imp. Heat Sink destroyed. Map ----- +----------------------------------------------------+ | ?????????????????????????????????????????????????? | | ?????????????????????????????????????????????????? | | ?????????????????????????????????????????????????? | | ?????????????????????????????????????????????????? | | ?????????????????????????????????????????????????? | | ?????????????????????????????????????????????????? | | ?????????????????????????????????????????????????? | | ?????????????????????????????????????????????????? | | ?????????????????????????????????????????????????? | | ?????????????????????????????????????????????????? | | ?????????????????????????????????????????????????? | | ?????????????????????????????????????????????????? | | ?????????????????????????????????????????????????? | | ?????????????????????????????????????????????????? | | ?????????????????????????????????????????????????? | | ????????????????#########????????????????????????? | | ???????????????? ??????????????????????? | | ???????????????? ???? ??????????????? | | ????????????????? ? ?????????????? | | ????????????????? ??????????????? | | ?????????????????? a ???????????????? | | ????????????????" """ g """" """???????????????? | | ??????????????"Y """gg """" """"??????????????? | | ?????????? """ """ """" """" ????????? | | ?????????? g ????????? | | ?????????? w @ g ????????? | | ?????????????????#### ##/######+#?###???????????? | | ???????????????????????# #? #???????????? | | ???????????????????????# """ #?""" #???????????? | | ???????????????????????#g"R #?""" ????????????? | | ???????????????????????#g""" # """ ?????????????? | | ???????????????????????#gx + ?????????????? | | ???????????????????????#g"""" #? ??????????????? | | ???????????????????????#g""" #?#/#?????????+###?? | | ???????????????????????# """" ### ######## ??? | | ???????????????????????# ## T" ?? | | ???????????????????????# """ ##= " ?? | | ???????????????????????# """"%/ %% | | ???????????????????????# """ ##!==####### #?? | | ???????????????????????# ## * #?###########?? | | ???????????????????????##### ### #?# #?? | | ??????????????????????########## #?# """" #?? | | ???????????????????# / #?# ""S"" #?? | | ???????????????????# ## #?# "" "" #?? | | ????????????????????????# #?# #?? | | ????????????????????????# ########?#! #?? | | ????????????????????????# #????????# #?? | | ????????????????????????# #????????# #?? | | ????????????????????????# ##############+####### | | ????????????????????????# # | +----------------------------------------------------+ Best States ------------- Heat Dissipation 45 Energy Generation 14 Energy Capacity 280 Matter Stores 300 Matter Capacity 300 Sight Range 18 Terrain Scan Range 16 Terrain Scan Density 85 Evasion (%) 55 Targeting Accuracy 16 Recoil Reduction 3 Item Schematics ----------------- Lgt. Treads | -9/Materials | Scanalyzed Robot Schematics ------------------ None Fabricated ------------ Nothing Repaired ---------- Nothing Studied --------- Lgt. Treads | -9/Materials | Hacked Alien Tech Used ----------------- None Achievements -------------- Heavy Suspicion Item+ Spot Them First Sprinter There's More Where That Came From Well Done Challenges ------------ None Game ------ Seed WeightNuclearArchive Manual? 0 Play Time 00:32:02 Cumulative 8.6 hours Start 2025.10.23 @ 18:37:50 End 2025.10.23 @ 19:10:17 Sessions 1 Manual Loads 0 Difficulty Rogue Special Mode None Game No. 21 Rogue 21 Adventurer 0 Explorer 0 Win Type - Total 0 Types 0/0/0/0/0/0/0/0/0/0 Lore% 3 Gallery% 9 Achievement% 8 Wizard Run 0 Options --------- Layout 0 ASCII 0 Keyboard 1 Movement Arrows Keybinds 0 Fullscreen 1 Font 24/Smallcaps Map View 38x25 Zoom Use 71% Tactical HUD 1 Map Filters NONE Filters NONE Steam 1 RUN: 8fc40e8d-6ecd-4925-be79-fb91d9ac1e96